[Event "Titled Tuesday Blitz December 06 Early 2022"]
[White "Ibarra Jerez, Jose Carlos"]
[Black "Andreikin, Dmitry"]
[WhiteFideId "2226332"]
[BlackFideId "4158814"]
[WhiteElo "2638"]
[BlackElo "2735"]
[Result "0-1"]
[Round "11"]
[TimeControl "180+1"]
[Date "2022.12.06"]
[WhiteClock "0:00:05"]
[BlackClock "0:00:08"]

1. a3 {[%clk 0:03:00]}  h5 {[%clk 0:02:53]} 2. b4 {[%clk 0:03:00]}  h4 {[%clk 0:02:53]} 3. Bb2 {[%clk 0:02:59]}  Nf6 {[%clk 0:02:52]} 4. h3 {[%clk 0:02:59]}  d5 {[%clk 0:02:49]} 5. Nf3 {[%clk 0:02:59]}  Bf5 {[%clk 0:02:49]} 6. e3 {[%clk 0:02:59]}  e6 {[%clk 0:02:47]} 7. c4 {[%clk 0:02:57]}  c6 {[%clk 0:02:47]} 8. d3 {[%clk 0:02:58]}  Nbd7 {[%clk 0:02:46]} 9. Nbd2 {[%clk 0:02:57]}  a5 {[%clk 0:02:37]} 10. Qb3 {[%clk 0:02:52]}  Bd6 {[%clk 0:02:23]} 11. Be2 {[%clk 0:02:48]}  Qe7 {[%clk 0:02:18]} 12. c5 {[%clk 0:02:41]}  Bc7 {[%clk 0:02:17]} 13. Qc2 {[%clk 0:02:38]}  e5 {[%clk 0:02:01]} 14. e4 {[%clk 0:02:36]}  Be6 {[%clk 0:02:01]} 15. Ng5 {[%clk 0:02:33]}  Nf8 {[%clk 0:01:53]} 16. O-O {[%clk 0:02:25]}  Ng6 {[%clk 0:01:39]} 17. Rfe1 {[%clk 0:02:20]}  O-O {[%clk 0:01:33]} 18. Bf1 {[%clk 0:02:12]}  axb4 {[%clk 0:01:29]} 19. axb4 {[%clk 0:02:11]}  Rxa1 {[%clk 0:01:30]} 20. Bxa1 {[%clk 0:02:12]}  Nh5 {[%clk 0:01:22]} 21. Nxe6 {[%clk 0:02:11]}  fxe6 {[%clk 0:01:22]} 22. Be2 {[%clk 0:01:58]}  Ngf4 {[%clk 0:01:17]} 23. Bxh5 {[%clk 0:01:46]}  Nxh5 {[%clk 0:01:16]} 24. Nf3 {[%clk 0:01:47]}  d4 {[%clk 0:00:49]} 25. Qd1 {[%clk 0:01:39]}  Qf6 {[%clk 0:00:45]} 26. Bb2 {[%clk 0:01:27]}  Nf4 {[%clk 0:00:43]} 27. Kh2 {[%clk 0:01:02]}  Qg6 {[%clk 0:00:42]} 28. Nxh4 {[%clk 0:00:59]}  Qg5 {[%clk 0:00:42]} 29. g3 {[%clk 0:00:15]}  Nxd3 {[%clk 0:00:40]} 30. Qxd3 {[%clk 0:00:15]}  Rxf2+ {[%clk 0:00:39]} 31. Kg1 {[%clk 0:00:09]}  Rxb2 {[%clk 0:00:38]} 32. Rf1 {[%clk 0:00:09]}  Bd8 {[%clk 0:00:34]} 33. Qf3 {[%clk 0:00:08]}  Bf6 {[%clk 0:00:33]} 34. Ng2 {[%clk 0:00:06]}  Qd2 {[%clk 0:00:20]} 35. Rf2 {[%clk 0:00:04]}  Rb1+ {[%clk 0:00:15]} 36. Kh2 {[%clk 0:00:04]}  Qc1 {[%clk 0:00:15]} 37. g4 {[%clk 0:00:03]}  Rxb4 {[%clk 0:00:11]} 38. h4 {[%clk 0:00:02]}  Qc3 {[%clk 0:00:07]} 39. g5 {[%clk 0:00:02]}  Qxf3 {[%clk 0:00:07]} 40. Rxf3 {[%clk 0:00:03]}  Be7 {[%clk 0:00:07]} 41. Ne1 {[%clk 0:00:04]}  Bxc5 {[%clk 0:00:07]} 42. Nd3 {[%clk 0:00:04]}  Rc4 {[%clk 0:00:07]} 43. g6 {[%clk 0:00:05]}  Rc3 {[%clk 0:00:07]} 44. h5 {[%clk 0:00:05]}  Be7 {[%clk 0:00:06]} 45. Kg2 {[%clk 0:00:05]}  Bf6 {[%clk 0:00:07]} 46. Kf1 {[%clk 0:00:06]}  c5 {[%clk 0:00:07]} 47. Ke2 {[%clk 0:00:05]}  c4 {[%clk 0:00:07]} 48. Nc5 {[%clk 0:00:05]}  d3+ {[%clk 0:00:08]} 49. Kd1 {[%clk 0:00:06]}  Bg5 {[%clk 0:00:08]} 50. Ke1 {[%clk 0:00:05]}  d2+ {[%clk 0:00:08]} 0-1


[Site "https://www.chess.com"]

[Event "Titled Tuesday Blitz December 06 Early 2022"]
[White "Jiganchine, Roman"]
[Black "Slovineanu"]
[WhiteFideId "2603667"]
[WhiteElo "2341"]
[BlackElo "2242"]
[Result "0-1"]
[Round "11"]
[TimeControl "180+1"]
[Date "2022.12.07"]
[WhiteClock "0:00:06"]
[BlackClock "0:00:14"]

1. e4 {[%clk 0:03:00]}  c6 {[%clk 0:02:57]} 2. d4 {[%clk 0:02:59]}  d5 {[%clk 0:02:57]} 3. exd5 {[%clk 0:02:59]}  cxd5 {[%clk 0:02:58]} 4. c4 {[%clk 0:02:59]}  Nf6 {[%clk 0:02:58]} 5. Nc3 {[%clk 0:03:00]}  e6 {[%clk 0:02:58]} 6. Nf3 {[%clk 0:02:59]}  Bb4 {[%clk 0:02:58]} 7. cxd5 {[%clk 0:02:59]}  Nxd5 {[%clk 0:02:59]} 8. Bd2 {[%clk 0:02:59]}  O-O {[%clk 0:02:58]} 9. Bd3 {[%clk 0:02:59]}  Nc6 {[%clk 0:02:59]} 10. O-O {[%clk 0:02:59]}  Nf6 {[%clk 0:02:59]} 11. Qe2 {[%clk 0:02:51]}  b6 {[%clk 0:02:38]} 12. Rad1 {[%clk 0:02:38]}  Bb7 {[%clk 0:02:36]} 13. Bg5 {[%clk 0:02:29]}  Be7 {[%clk 0:02:34]} 14. Bb1 {[%clk 0:02:28]}  Nb4 {[%clk 0:02:28]} 15. Ne5 {[%clk 0:02:23]}  Nbd5 {[%clk 0:02:27]} 16. Rfe1 {[%clk 0:02:21]}  Rc8 {[%clk 0:02:25]} 17. Qd3 {[%clk 0:01:55]}  g6 {[%clk 0:02:05]} 18. Qh3 {[%clk 0:01:54]}  Qc7 {[%clk 0:01:10]} 19. Bh6 {[%clk 0:01:48]}  Nxc3 {[%clk 0:01:07]} 20. bxc3 {[%clk 0:01:45]}  Qxc3 {[%clk 0:01:07]} 21. Qxc3 {[%clk 0:01:30]}  Rxc3 {[%clk 0:01:08]} 22. Bxf8 {[%clk 0:01:30]}  Bxf8 {[%clk 0:01:05]} 23. Rc1 {[%clk 0:01:26]}  Bb4 {[%clk 0:00:34]} 24. h3 {[%clk 0:00:58]}  a5 {[%clk 0:00:29]} 25. Red1 {[%clk 0:00:54]}  Kg7 {[%clk 0:00:20]} 26. Rxc3 {[%clk 0:00:44]}  Bxc3 {[%clk 0:00:20]} 27. Nc4 {[%clk 0:00:43]}  b5 {[%clk 0:00:18]} 28. Nd6 {[%clk 0:00:43]}  Bc6 {[%clk 0:00:18]} 29. Bd3 {[%clk 0:00:38]}  b4 {[%clk 0:00:18]} 30. Bc4 {[%clk 0:00:33]}  Bd5 {[%clk 0:00:18]} 31. Bxd5 {[%clk 0:00:23]}  Nxd5 {[%clk 0:00:18]} 32. Ne4 {[%clk 0:00:21]}  a4 {[%clk 0:00:18]} 33. g3 {[%clk 0:00:17]}  a3 {[%clk 0:00:17]} 34. Kg2 {[%clk 0:00:16]}  f5 {[%clk 0:00:15]} 35. Nxc3 {[%clk 0:00:14]}  Nxc3 {[%clk 0:00:16]} 36. Rd2 {[%clk 0:00:14]}  b3 {[%clk 0:00:14]} 37. axb3 {[%clk 0:00:11]}  a2 {[%clk 0:00:14]} 38. Rxa2 {[%clk 0:00:09]}  Nxa2 {[%clk 0:00:15]} 39. Kf3 {[%clk 0:00:09]}  Kf6 {[%clk 0:00:15]} 40. Ke3 {[%clk 0:00:09]}  Ke7 {[%clk 0:00:14]} 41. Kd3 {[%clk 0:00:09]}  Kd6 {[%clk 0:00:15]} 42. Kc4 {[%clk 0:00:10]}  Nc1 {[%clk 0:00:13]} 43. b4 {[%clk 0:00:08]}  Kc6 {[%clk 0:00:13]} 44. b5+ {[%clk 0:00:07]}  Kd6 {[%clk 0:00:12]} 45. b6 {[%clk 0:00:06]}  Kc6 {[%clk 0:00:13]} 46. b7 {[%clk 0:00:04]}  Kxb7 {[%clk 0:00:13]} 47. d5 {[%clk 0:00:05]}  e5 {[%clk 0:00:12]} 48. d6 {[%clk 0:00:05]}  Kc6 {[%clk 0:00:13]} 49. d7 {[%clk 0:00:05]}  Kxd7 {[%clk 0:00:13]} 50. Kd5 {[%clk 0:00:06]}  e4 {[%clk 0:00:14]} 0-1


[Site "https://www.chess.com"]

[Event "Titled Tuesday Blitz December 06 Early 2022"]
[White "Kazakouski, Valery"]
[Black "Xu, Yi"]
[WhiteFideId "13507443"]
[BlackFideId "8605564"]
[WhiteElo "2516"]
[BlackElo "2471"]
[Result "0-1"]
[Round "11"]
[TimeControl "180+1"]
[Date "2022.12.06"]
[WhiteClock "0:00:14"]
[BlackClock "0:00:51"]

1. Nf3 {[%clk 0:03:00]}  d5 {[%clk 0:02:59]} 2. c4 {[%clk 0:03:00]}  e6 {[%clk 0:02:59]} 3. b3 {[%clk 0:03:00]}  d4 {[%clk 0:02:57]} 4. e3 {[%clk 0:03:01]}  c5 {[%clk 0:02:58]} 5. exd4 {[%clk 0:03:01]}  cxd4 {[%clk 0:02:58]} 6. g3 {[%clk 0:03:02]}  Nc6 {[%clk 0:02:58]} 7. Bg2 {[%clk 0:03:03]}  Nf6 {[%clk 0:02:58]} 8. O-O {[%clk 0:03:04]}  Bd6 {[%clk 0:02:55]} 9. d3 {[%clk 0:03:04]}  O-O {[%clk 0:02:53]} 10. Bg5 {[%clk 0:03:04]}  h6 {[%clk 0:02:52]} 11. Bxf6 {[%clk 0:03:04]}  Qxf6 {[%clk 0:02:53]} 12. a3 {[%clk 0:03:05]}  a5 {[%clk 0:02:51]} 13. Nbd2 {[%clk 0:03:05]}  Qd8 {[%clk 0:02:51]} 14. Qc2 {[%clk 0:03:04]}  e5 {[%clk 0:02:48]} 15. c5 {[%clk 0:03:04]}  Bc7 {[%clk 0:02:47]} 16. Nc4 {[%clk 0:03:03]}  Bf5 {[%clk 0:02:22]} 17. Nfd2 {[%clk 0:03:02]}  Qd7 {[%clk 0:02:20]} 18. Rab1 {[%clk 0:03:00]}  Bh3 {[%clk 0:02:19]} 19. b4 {[%clk 0:03:00]}  axb4 {[%clk 0:02:19]} 20. axb4 {[%clk 0:03:01]}  Bxg2 {[%clk 0:02:17]} 21. Kxg2 {[%clk 0:03:02]}  Qd5+ {[%clk 0:02:08]} 22. Kg1 {[%clk 0:03:02]}  f5 {[%clk 0:02:08]} 23. b5 {[%clk 0:02:54]}  Nd8 {[%clk 0:02:01]} 24. c6 {[%clk 0:02:28]}  bxc6 {[%clk 0:01:48]} 25. b6 {[%clk 0:02:28]}  Bb8 {[%clk 0:01:48]} 26. Ra1 {[%clk 0:02:04]}  Rxa1 {[%clk 0:01:46]} 27. Rxa1 {[%clk 0:02:05]}  Ne6 {[%clk 0:01:39]} 28. Ra5 {[%clk 0:02:05]}  c5 {[%clk 0:01:37]} 29. Qa2 {[%clk 0:01:58]}  Kh7 {[%clk 0:01:34]} 30. Ra6 {[%clk 0:01:23]}  Ng5 {[%clk 0:01:33]} 31. h4 {[%clk 0:01:23]}  Nh3+ {[%clk 0:01:30]} 32. Kf1 {[%clk 0:01:12]}  Qh1+ {[%clk 0:01:29]} 33. Ke2 {[%clk 0:01:12]}  Qc1 {[%clk 0:01:18]} 34. Kf3 {[%clk 0:00:53]}  e4+ {[%clk 0:01:18]} 35. dxe4 {[%clk 0:00:49]}  fxe4+ {[%clk 0:01:16]} 36. Kxe4 {[%clk 0:00:48]}  Nxf2+ {[%clk 0:01:11]} 37. Kd5 {[%clk 0:00:46]}  Nd3 {[%clk 0:00:58]} 38. Ra4 {[%clk 0:00:19]}  Qh1+ {[%clk 0:00:57]} 39. Ke6 {[%clk 0:00:13]}  Qc6+ {[%clk 0:00:53]} 40. Ke7 {[%clk 0:00:13]}  Qf6+ {[%clk 0:00:51]} 41. Kd7 {[%clk 0:00:14]}  Rd8# {[%clk 0:00:51]} 0-1


[Site "https://www.chess.com"]

[Event "Titled Tuesday Blitz December 06 Early 2022"]
[White "Kleiman, Jake"]
[Black "Tanenbaum, Zachary"]
[WhiteFideId "2020041"]
[BlackFideId "2060850"]
[WhiteElo "2561"]
[BlackElo "2175"]
[Result "1-0"]
[Round "11"]
[TimeControl "180+1"]
[Date "2022.12.07"]
[WhiteClock "0:01:31"]
[BlackClock "0:00:07"]

1. e4 {[%clk 0:03:00]}  e5 {[%clk 0:02:59]} 2. Nf3 {[%clk 0:02:59]}  Nc6 {[%clk 0:03:00]} 3. Bc4 {[%clk 0:02:59]}  Nf6 {[%clk 0:03:00]} 4. d3 {[%clk 0:02:58]}  Bc5 {[%clk 0:03:00]} 5. O-O {[%clk 0:02:59]}  d6 {[%clk 0:03:00]} 6. c3 {[%clk 0:02:59]}  O-O {[%clk 0:02:54]} 7. Bb3 {[%clk 0:03:00]}  Bb6 {[%clk 0:02:50]} 8. h3 {[%clk 0:03:00]}  Ne7 {[%clk 0:02:49]} 9. Re1 {[%clk 0:03:01]}  Ng6 {[%clk 0:02:49]} 10. Nbd2 {[%clk 0:03:02]}  Nh5 {[%clk 0:02:37]} 11. Nf1 {[%clk 0:03:01]}  Nhf4 {[%clk 0:02:37]} 12. Ng3 {[%clk 0:03:01]}  Qf6 {[%clk 0:02:33]} 13. Nh5 {[%clk 0:03:00]}  Qe7 {[%clk 0:01:53]} 14. Nxf4 {[%clk 0:02:54]}  Nxf4 {[%clk 0:01:52]} 15. Bxf4 {[%clk 0:02:54]}  exf4 {[%clk 0:01:53]} 16. d4 {[%clk 0:02:55]}  Be6 {[%clk 0:01:49]} 17. Bc2 {[%clk 0:02:37]}  Qf6 {[%clk 0:01:47]} 18. Qd2 {[%clk 0:02:33]}  Rfe8 {[%clk 0:01:34]} 19. a4 {[%clk 0:02:31]}  a5 {[%clk 0:01:33]} 20. Bd3 {[%clk 0:02:27]}  Rad8 {[%clk 0:01:33]} 21. Re2 {[%clk 0:02:21]}  c6 {[%clk 0:01:15]} 22. Rae1 {[%clk 0:02:16]}  g5 {[%clk 0:00:56]} 23. e5 {[%clk 0:02:12]}  dxe5 {[%clk 0:00:56]} 24. Nxe5 {[%clk 0:02:13]}  Rf8 {[%clk 0:00:30]} 25. Bc2 {[%clk 0:02:00]}  Kg7 {[%clk 0:00:24]} 26. Qd3 {[%clk 0:01:58]}  Rh8 {[%clk 0:00:24]} 27. Ng4 {[%clk 0:01:42]}  Bxg4 {[%clk 0:00:20]} 28. hxg4 {[%clk 0:01:43]}  Bc7 {[%clk 0:00:16]} 29. Re7 {[%clk 0:01:42]}  Rc8 {[%clk 0:00:13]} 30. Bb3 {[%clk 0:01:39]}  Rhf8 {[%clk 0:00:12]} 31. R1e6 {[%clk 0:01:36]}  Qxe6 {[%clk 0:00:07]} 32. Bxe6 {[%clk 0:01:35]}  Kf6 {[%clk 0:00:07]} 33. Rxf7+ {[%clk 0:01:31]}  Rxf7 {[%clk 0:00:07]} 34. Qf5+ {[%clk 0:01:30]}  Ke7 {[%clk 0:00:07]} 35. Qxf7+ {[%clk 0:01:31]}  Kd6 {[%clk 0:00:07]} 36. Qd7# {[%clk 0:01:31]} 1-0


[Site "https://www.chess.com"]

[Event "Titled Tuesday Blitz December 06 Early 2022"]
[White "Kvaloy, Aksel Bu"]
[Black "Korchmar, Vasiliy"]
[WhiteFideId "1528815"]
[BlackFideId "24131750"]
[WhiteElo "2184"]
[BlackElo "2370"]
[Result "1-0"]
[Round "11"]
[TimeControl "180+1"]
[Date "2022.12.06"]
[WhiteClock "0:00:12"]
[BlackClock "0:00:01"]

1. d4 {[%clk 0:03:00]}  d5 {[%clk 0:03:00]} 2. c4 {[%clk 0:02:58]}  c6 {[%clk 0:03:00]} 3. Nf3 {[%clk 0:02:56]}  Nf6 {[%clk 0:03:01]} 4. g3 {[%clk 0:02:40]}  g6 {[%clk 0:03:00]} 5. Nc3 {[%clk 0:02:39]}  dxc4 {[%clk 0:02:57]} 6. Bg2 {[%clk 0:02:39]}  Bg7 {[%clk 0:02:57]} 7. Ne5 {[%clk 0:02:38]}  Ng4 {[%clk 0:02:57]} 8. Nxc4 {[%clk 0:02:31]}  Qxd4 {[%clk 0:02:53]} 9. Qxd4 {[%clk 0:02:30]}  Bxd4 {[%clk 0:02:54]} 10. e3 {[%clk 0:02:30]}  Bg7 {[%clk 0:02:54]} 11. Na5 {[%clk 0:02:30]}  O-O {[%clk 0:02:52]} 12. O-O {[%clk 0:02:28]}  Na6 {[%clk 0:02:51]} 13. Rd1 {[%clk 0:02:25]}  Nc5 {[%clk 0:02:46]} 14. Bd2 {[%clk 0:02:22]}  Ne5 {[%clk 0:02:43]} 15. b4 {[%clk 0:02:17]}  Ncd3 {[%clk 0:02:43]} 16. Rab1 {[%clk 0:02:12]}  Bg4 {[%clk 0:02:41]} 17. Rf1 {[%clk 0:02:09]}  Nf3+ {[%clk 0:02:40]} 18. Bxf3 {[%clk 0:02:04]}  Bxf3 {[%clk 0:02:41]} 19. Nxb7 {[%clk 0:02:04]}  Rab8 {[%clk 0:02:42]} 20. Nc5 {[%clk 0:02:01]}  Nxc5 {[%clk 0:02:36]} 21. bxc5 {[%clk 0:02:01]}  Rxb1 {[%clk 0:02:37]} 22. Rxb1 {[%clk 0:02:00]}  Rd8 {[%clk 0:02:38]} 23. Be1 {[%clk 0:01:57]}  g5 {[%clk 0:02:26]} 24. Kf1 {[%clk 0:01:53]}  h5 {[%clk 0:02:25]} 25. Rc1 {[%clk 0:01:48]}  Rd3 {[%clk 0:02:16]} 26. Nb1 {[%clk 0:01:46]}  f5 {[%clk 0:01:58]} 27. Nd2 {[%clk 0:01:45]}  Bd5 {[%clk 0:01:56]} 28. Nc4 {[%clk 0:01:39]}  g4 {[%clk 0:01:38]} 29. Ke2 {[%clk 0:01:35]}  Bxc4 {[%clk 0:01:17]} 30. Rxc4 {[%clk 0:01:36]}  Ra3 {[%clk 0:01:18]} 31. Rc2 {[%clk 0:01:35]}  Kf7 {[%clk 0:01:16]} 32. e4 {[%clk 0:01:04]}  fxe4 {[%clk 0:01:14]} 33. Bd2 {[%clk 0:01:04]}  Ke6 {[%clk 0:01:05]} 34. Be3 {[%clk 0:01:04]}  Kd5 {[%clk 0:00:56]} 35. Rd2+ {[%clk 0:01:03]}  Kc4 {[%clk 0:00:57]} 36. Rc2+ {[%clk 0:01:02]}  Rc3 {[%clk 0:00:55]} 37. Rd2 {[%clk 0:00:58]}  Rd3 {[%clk 0:00:43]} 38. Rc2+ {[%clk 0:00:57]}  Kb5 {[%clk 0:00:44]} 39. Bg5 {[%clk 0:00:50]}  Bf6 {[%clk 0:00:39]} 40. Be3 {[%clk 0:00:47]}  a5 {[%clk 0:00:38]} 41. Rc1 {[%clk 0:00:44]}  Ra3 {[%clk 0:00:30]} 42. Rc2 {[%clk 0:00:43]}  a4 {[%clk 0:00:29]} 43. Rd2 {[%clk 0:00:38]}  Bc3 {[%clk 0:00:29]} 44. Rc2 {[%clk 0:00:37]}  Be5 {[%clk 0:00:18]} 45. Bg5 {[%clk 0:00:35]}  e6 {[%clk 0:00:14]} 46. Be3 {[%clk 0:00:33]}  Rc3 {[%clk 0:00:07]} 47. Rb2+ {[%clk 0:00:32]}  Kc4 {[%clk 0:00:07]} 48. Rb6 {[%clk 0:00:24]}  Kd5 {[%clk 0:00:05]} 49. Rb7 {[%clk 0:00:13]}  Rc2+ {[%clk 0:00:05]} 50. Kf1 {[%clk 0:00:12]}  Rxa2 {[%clk 0:00:06]} 51. Rd7+ {[%clk 0:00:12]}  Kc4 {[%clk 0:00:06]} 52. Re7 {[%clk 0:00:13]}  Kd5 {[%clk 0:00:05]} 53. Rd7+ {[%clk 0:00:13]}  Kc4 {[%clk 0:00:05]} 54. Re7 {[%clk 0:00:13]}  a3 {[%clk 0:00:06]} 55. Rxe6 {[%clk 0:00:14]}  Bc3 {[%clk 0:00:05]} 56. Rxc6 {[%clk 0:00:14]}  Ra1+ {[%clk 0:00:04]} 57. Kg2 {[%clk 0:00:13]}  a2 {[%clk 0:00:05]} 58. Ra6 {[%clk 0:00:13]}  Kb3 {[%clk 0:00:05]} 59. c6 {[%clk 0:00:13]}  Rd1 {[%clk 0:00:01]} 60. c7 {[%clk 0:00:12]}  a1=Q {[%clk 0:00:01]} 61. Rxa1 {[%clk 0:00:12]} 1-0


[Site "https://www.chess.com"]

[Event "Titled Tuesday Blitz December 06 Early 2022"]
[White "Lawson, Eric"]
[Black "Farmani Anosheh, Armin"]
[WhiteFideId "2604116"]
[BlackFideId "24613240"]
[WhiteElo "2573"]
[BlackElo "2289"]
[Result "1-0"]
[Round "11"]
[TimeControl "180+1"]
[Date "2022.12.07"]
[WhiteClock "0:00:05"]
[BlackClock "0:00:03"]

1. d4 {[%clk 0:03:00]}  Nf6 {[%clk 0:02:59]} 2. Bg5 {[%clk 0:03:01]}  d5 {[%clk 0:02:59]} 3. Bxf6 {[%clk 0:03:01]}  gxf6 {[%clk 0:03:00]} 4. e3 {[%clk 0:03:00]}  c5 {[%clk 0:03:00]} 5. c3 {[%clk 0:03:00]}  e6 {[%clk 0:02:48]} 6. f4 {[%clk 0:02:57]}  Nc6 {[%clk 0:02:48]} 7. Nf3 {[%clk 0:02:58]}  Qb6 {[%clk 0:02:35]} 8. Qb3 {[%clk 0:02:56]}  c4 {[%clk 0:02:29]} 9. Qc2 {[%clk 0:02:56]}  f5 {[%clk 0:02:28]} 10. b3 {[%clk 0:02:51]}  cxb3 {[%clk 0:02:26]} 11. axb3 {[%clk 0:02:51]}  a5 {[%clk 0:02:26]} 12. Nbd2 {[%clk 0:02:41]}  Bd7 {[%clk 0:02:25]} 13. Bd3 {[%clk 0:02:38]}  Rg8 {[%clk 0:02:20]} 14. O-O {[%clk 0:02:35]}  Bd6 {[%clk 0:02:00]} 15. Ne5 {[%clk 0:02:33]}  Ke7 {[%clk 0:01:56]} 16. Rf3 {[%clk 0:02:30]}  Rg7 {[%clk 0:01:47]} 17. Rh3 {[%clk 0:02:30]}  Rag8 {[%clk 0:01:47]} 18. Bf1 {[%clk 0:02:21]}  Bxe5 {[%clk 0:01:26]} 19. fxe5 {[%clk 0:02:20]}  f4 {[%clk 0:01:27]} 20. Qd3 {[%clk 0:01:48]}  fxe3 {[%clk 0:01:21]} 21. Qxe3 {[%clk 0:01:49]}  f6 {[%clk 0:01:11]} 22. exf6+ {[%clk 0:01:41]}  Kxf6 {[%clk 0:01:12]} 23. Re1 {[%clk 0:01:35]}  Ke7 {[%clk 0:01:08]} 24. Kh1 {[%clk 0:01:30]}  Kd8 {[%clk 0:01:08]} 25. Rh6 {[%clk 0:01:20]}  Rf8 {[%clk 0:01:01]} 26. h3 {[%clk 0:01:16]}  Rgf7 {[%clk 0:00:55]} 27. Bd3 {[%clk 0:01:15]}  Kc8 {[%clk 0:00:54]} 28. Rxh7 {[%clk 0:01:11]}  Rf2 {[%clk 0:00:53]} 29. Re2 {[%clk 0:01:04]}  Rxe2 {[%clk 0:00:39]} 30. Bxe2 {[%clk 0:01:05]}  e5 {[%clk 0:00:39]} 31. Qh6 {[%clk 0:00:58]}  Rf2 {[%clk 0:00:29]} 32. Bf3 {[%clk 0:00:11]}  e4 {[%clk 0:00:27]} 33. Bg4 {[%clk 0:00:10]}  Bxg4 {[%clk 0:00:19]} 34. hxg4 {[%clk 0:00:11]}  Kb8 {[%clk 0:00:17]} 35. Qd6+ {[%clk 0:00:10]}  Ka7 {[%clk 0:00:17]} 36. Qh6 {[%clk 0:00:08]}  Re2 {[%clk 0:00:10]} 37. Kg1 {[%clk 0:00:09]}  e3 {[%clk 0:00:10]} 38. Nf3 {[%clk 0:00:08]}  Qxb3 {[%clk 0:00:10]} 39. Qxc6 {[%clk 0:00:08]}  Qb1+ {[%clk 0:00:05]} 40. Kh2 {[%clk 0:00:08]}  Qxh7+ {[%clk 0:00:06]} 41. Kg3 {[%clk 0:00:07]}  b6 {[%clk 0:00:04]} 42. Qxd5 {[%clk 0:00:07]}  Rb2 {[%clk 0:00:02]} 43. Qe6 {[%clk 0:00:05]}  e2 {[%clk 0:00:03]} 44. d5 {[%clk 0:00:05]} 1-0


[Site "https://www.chess.com"]

[Event "Titled Tuesday Blitz December 06 Early 2022"]
[White "Le, Tuan Minh"]
[Black "Jobava, Baadur"]
[WhiteFideId "12401153"]
[BlackFideId "13601520"]
[WhiteElo "2530"]
[BlackElo "2582"]
[Result "0-1"]
[Round "11"]
[TimeControl "180+1"]
[Date "2022.12.06"]
[WhiteClock "0:00:02"]
[BlackClock "0:00:05"]

1. d4 {[%clk 0:03:00]}  c5 {[%clk 0:02:58]} 2. c3 {[%clk 0:03:01]}  Qc7 {[%clk 0:02:49]} 3. Nf3 {[%clk 0:02:59]}  Nf6 {[%clk 0:02:49]} 4. Bg5 {[%clk 0:02:58]}  e6 {[%clk 0:02:48]} 5. e3 {[%clk 0:02:56]}  Be7 {[%clk 0:02:46]} 6. Bd3 {[%clk 0:02:56]}  b6 {[%clk 0:02:43]} 7. Nbd2 {[%clk 0:02:55]}  Bb7 {[%clk 0:02:43]} 8. Qe2 {[%clk 0:02:54]}  O-O {[%clk 0:02:37]} 9. e4 {[%clk 0:02:52]}  cxd4 {[%clk 0:02:13]} 10. cxd4 {[%clk 0:02:52]}  Nc6 {[%clk 0:02:14]} 11. O-O {[%clk 0:02:44]}  Rfc8 {[%clk 0:01:54]} 12. a3 {[%clk 0:02:39]}  Qd8 {[%clk 0:01:53]} 13. h3 {[%clk 0:02:06]}  h6 {[%clk 0:01:52]} 14. Bf4 {[%clk 0:02:02]}  Bf8 {[%clk 0:01:44]} 15. Rfe1 {[%clk 0:02:01]}  Ne7 {[%clk 0:01:45]} 16. Rad1 {[%clk 0:01:54]}  Ng6 {[%clk 0:01:45]} 17. Bh2 {[%clk 0:01:54]}  Nh5 {[%clk 0:01:44]} 18. Qe3 {[%clk 0:01:54]}  Nf6 {[%clk 0:01:43]} 19. Ne5 {[%clk 0:01:52]}  Ne7 {[%clk 0:01:41]} 20. Ndc4 {[%clk 0:01:32]}  Nc6 {[%clk 0:01:34]} 21. Nxc6 {[%clk 0:01:17]}  Bxc6 {[%clk 0:01:35]} 22. Nd6 {[%clk 0:01:13]}  Bxd6 {[%clk 0:01:34]} 23. Bxd6 {[%clk 0:01:13]}  Ba4 {[%clk 0:01:30]} 24. Rd2 {[%clk 0:01:13]}  Ne8 {[%clk 0:01:17]} 25. Bf4 {[%clk 0:01:13]}  Nf6 {[%clk 0:01:11]} 26. Ba6 {[%clk 0:01:06]}  Rc2 {[%clk 0:01:07]} 27. Rxc2 {[%clk 0:01:03]}  Bxc2 {[%clk 0:01:08]} 28. Bb7 {[%clk 0:01:04]}  Rb8 {[%clk 0:01:02]} 29. Bxb8 {[%clk 0:00:59]}  Qxb8 {[%clk 0:01:02]} 30. Qc3 {[%clk 0:00:54]}  Qxb7 {[%clk 0:01:02]} 31. Qxc2 {[%clk 0:00:54]}  b5 {[%clk 0:00:48]} 32. Rc1 {[%clk 0:00:40]}  Qb6 {[%clk 0:00:38]} 33. Qc5 {[%clk 0:00:35]}  Qa5 {[%clk 0:00:38]} 34. e5 {[%clk 0:00:29]}  Nd5 {[%clk 0:00:35]} 35. Qc8+ {[%clk 0:00:23]}  Kh7 {[%clk 0:00:36]} 36. Qc2+ {[%clk 0:00:20]}  g6 {[%clk 0:00:35]} 37. Qd3 {[%clk 0:00:21]}  Kg7 {[%clk 0:00:32]} 38. g3 {[%clk 0:00:21]}  h5 {[%clk 0:00:33]} 39. h4 {[%clk 0:00:22]}  Qb6 {[%clk 0:00:33]} 40. b4 {[%clk 0:00:18]}  a5 {[%clk 0:00:32]} 41. bxa5 {[%clk 0:00:15]}  Qxa5 {[%clk 0:00:33]} 42. Rb1 {[%clk 0:00:15]}  Nc7 {[%clk 0:00:24]} 43. Rb3 {[%clk 0:00:13]}  Qa4 {[%clk 0:00:13]} 44. Rc3 {[%clk 0:00:13]}  Nd5 {[%clk 0:00:12]} 45. Rc5 {[%clk 0:00:14]}  b4 {[%clk 0:00:12]} 46. axb4 {[%clk 0:00:15]}  Qxb4 {[%clk 0:00:13]} 47. Rc1 {[%clk 0:00:13]}  Qb2 {[%clk 0:00:13]} 48. Rb1 {[%clk 0:00:12]}  Qa2 {[%clk 0:00:13]} 49. Rb8 {[%clk 0:00:10]}  Qa7 {[%clk 0:00:12]} 50. Rb1 {[%clk 0:00:04]}  Ne7 {[%clk 0:00:11]} 51. Qd2 {[%clk 0:00:03]}  Nd5 {[%clk 0:00:07]} 52. Rd1 {[%clk 0:00:04]}  Qa4 {[%clk 0:00:06]} 53. Rc1 {[%clk 0:00:04]}  Qa3 {[%clk 0:00:06]} 54. Rc5 {[%clk 0:00:04]}  Qa1+ {[%clk 0:00:06]} 55. Kg2 {[%clk 0:00:04]}  Qa8 {[%clk 0:00:07]} 56. Kg1 {[%clk 0:00:04]}  Qa1+ {[%clk 0:00:07]} 57. Rc1 {[%clk 0:00:03]}  Qa4 {[%clk 0:00:08]} 58. Qb2 {[%clk 0:00:03]}  Qa7 {[%clk 0:00:05]} 59. Rc5 {[%clk 0:00:02]}  Qa4 {[%clk 0:00:05]} 0-1


[Site "https://www.chess.com"]